bitfinex/quotes_SOLUSD_20241210
["timestamp","ask_amount","ask_price","bid_price","bid_amount"]
[1733842434116,10.0,217.17,217.16,36.43968357]
[1733842434291,10.0,217.19,217.16,36.43968357]
[1733842434688,10.0,217.21,217.18,36.43968357]
[1733842435008,10.0,217.27,217.2,36.43968357]
[1733842435192,10.0,217.27,217.14,36.43968357]
[1733842435193,10.0,217.27,217.25,36.43968357]
[1733842435521,10.0,217.34,217.26,36.43968357]
[1733842435714,10.0,217.32,217.29,36.43968357]
[1733842436093,10.0,217.32,217.3,36.43968357]
[1733842436503,10.0,217.29,217.28,36.43968357]
[1733842436718,10.0,217.29,217.26,36.43968357]
[1733842437094,10.0,217.29,217.28,36.43968357]
[1733842437602,10.0,217.31,217.28,36.43968357]
[1733842438001,10.0,217.27,217.26,36.43968357]
[1733842438200,10.0,217.25,217.22,36.43968357]
[1733842438399,10.0,217.25,217.24,36.43968357]
[1733842439317,10.0,217.25,217.22,36.43968357]
[1733842439507,10.0,217.24,217.22,36.43968357]
[1733842439715,10.0,217.27,217.22,36.43968357]
[1733842439918,10.0,217.24,217.22,36.43968357]
[1733842440118,10.0,217.26,217.22,36.43968357]
[1733842440327,10.0,217.24,217.22,36.43968357]
[1733842440709,10.0,217.21,217.18,36.43968357]
[1733842441017,10.0,217.23,217.2,36.43968357]
[1733842441216,10.0,217.21,217.2,36.43968357]
[1733842441419,10.0,217.19,217.15,36.43968357]
[1733842441619,10.0,217.11,217.1,36.43968357]
[1733842441807,10.0,217.11,217.08,36.43968357]
[1733842442312,0.86352778,217.21,217.04,6.6377]
[1733842442313,10.0,217.08,217.04,36.43968357]
[1733842442508,10.0,217.05,217.02,36.43968357]
[1733842443135,10.0,217.03,217.0,36.43968357]
[1733842443802,0.86379752,217.12,216.94,11.5236]
[1733842443803,10.0,217.0,216.98,36.43968357]
[1733842444197,10.0,216.97,216.96,36.43968357]
[1733842444398,10.0,216.95,216.94,36.43968357]
[1733842444616,10.0,216.93,216.92,36.43968357]
[1733842444821,10.0,216.95,216.92,36.43968357]
[1733842445008,10.0,216.95,216.94,36.43968357]
[1733842445209,10.0,217.06,216.87,11.5276]
[1733842445210,10.0,216.92,216.87,11.5276]
[1733842445442,10.0,216.92,216.91,36.43968357]
[1733842445811,0.86412169,217.03,216.92,0.25098]
[1733842445812,10.0,217.03,216.92,0.25098]
[1733842446131,10.0,216.91,216.86,0.5728958]
[1733842446308,10.0,216.87,216.86,0.5728958]
[1733842446938,33.776884,216.87,216.86,0.5728958]
[1733842447308,33.902374,216.87,216.86,0.5728958]
[1733842447511,34.76718693,216.87,216.86,0.5728958]
[1733842447715,34.76718693,216.87,216.67,6.6377]
[1733842447716,10.0,216.73,216.72,36.43968357]
[1733842447910,10.0,216.73,216.7,36.43968357]
[1733842448211,10.0,216.75,216.72,36.43968357]
[1733842448419,10.0,216.79,216.74,36.43968357]
[1733842448739,10.0,216.92,216.7,36.43968357]
[1733842448740,10.0,216.84,216.78,36.43968357]
[1733842448949,10.0,216.84,216.82,36.43968357]
[1733842449117,10.0,216.89,216.83,36.43968357]
[1733842449431,10.0,216.89,216.84,36.43968357]
[1733842449637,0.86450109,216.94,216.78,312.0]
[1733842449638,10.0,216.85,216.82,36.43968357]
[1733842449839,10.0,216.85,216.79,36.43968357]
[1733842450050,10.0,216.81,216.78,36.43968357]
[1733842450328,0.86468974,216.91,216.71,11.536]
[1733842450329,10.0,216.76,216.71,11.536]
[1733842450539,10.0,216.87,216.72,36.43968357]
[1733842450540,10.0,216.75,216.72,36.43968357]
[1733842450738,10.0,216.75,216.64,2.1047958]
[1733842450739,10.0,216.7,216.64,2.1047958]
[1733842450923,10.0,216.7,216.68,36.43968357]
[1733842451307,10.0,216.7,216.64,2.1047958]
[1733842451308,10.0,216.7,216.66,36.43968357]
[1733842451517,10.0,216.68,216.66,36.43968357]
[1733842452141,10.0,216.65,216.64,0.5728958]
[1733842452831,43.902374,216.65,216.64,0.5728958]
[1733842453240,44.153354,216.65,216.64,0.5728958]
[1733842454241,44.153354,216.65,216.46,1.5319]
[1733842454242,10.0,216.49,216.46,37.97158357]
[1733842454415,10.0,216.48,216.43,36.43968357]
[1733842454620,10.0,216.45,216.43,36.43968357]
[1733842454944,10.0,216.47,216.44,36.43968357]
[1733842455151,10.0,216.47,216.42,0.5728958]
[1733842455319,10.0,216.44,216.42,37.01257937]
[1733842455520,10.0,216.46,216.43,36.43968357]
[1733842455716,10.0,216.46,216.42,0.5728958]
[1733842455717,10.0,216.46,216.45,36.43968357]
[1733842456017,10.0,216.44,216.42,0.5728958]
[1733842459418,10.0,216.44,216.42,37.01257937]
[1733842459614,0.86619252,216.52,216.42,37.01257937]
[1733842459615,10.0,216.52,216.44,0.25098]
[1733842459819,10.0,216.53,216.51,36.43968357]
[1733842460126,10.0,216.51,216.47,36.43968357]
[1733842460440,10.0,216.49,216.47,36.43968357]
[1733842460644,10.0,216.52,216.48,56.43968357]
[1733842460941,10.0,216.56,216.52,0.25098]
[1733842461150,0.86579848,216.73,216.55,56.43968357]
[1733842461151,10.0,216.6,216.55,56.43968357]
[1733842461356,2.77606052,216.71,216.55,56.43968357]
[1733842461357,10.0,216.59,216.58,36.43968357]
[1733842461515,10.0,216.56,216.55,56.43968357]
[1733842461715,10.0,216.53,216.5,36.43968357]
[1733842461923,0.86561996,216.68,216.4,25.84341366]
[1733842461924,10.0,216.49,216.4,11.5521]
[1733842462145,2.77606052,216.71,216.4,36.43968357]
[1733842462146,10.0,216.43,216.4,36.43968357]
[1733842462342,10.0,216.43,216.41,36.43968357]
[1733842463130,10.0,216.48,216.42,37.01257937]
[1733842463332,10.0,216.48,216.47,36.43968357]
[1733842464216,10.0,216.48,216.46,36.43968357]
[1733842464559,10.0,216.44,216.42,0.5728958]
[1733842465258,0.8663587,216.43,216.42,0.5728958]
[1733842465560,10.0,216.44,216.42,0.5728958]
[1733842465858,10.0,216.44,216.43,36.43968357]
[1733842466042,10.0,216.43,216.42,0.5728958]
[1733842470923,2.3085,216.59,216.42,0.5728958]
[1733842470924,10.0,216.46,216.42,37.01257937]
[1733842471125,10.0,216.46,216.45,36.43968357]
[1733842471727,10.0,216.64,216.49,0.25098]
[1733842471926,16.1653,216.67,216.49,0.25098]
[1733842471927,0.8656398,216.66,216.55,36.43968357]
[1733842472122,0.8656398,216.66,216.56,36.43968357]
[1733842472327,0.8656398,216.66,216.55,36.43968357]
[1733842472560,0.8656398,216.66,216.57,36.43968357]
[1733842472765,0.86550809,216.69,216.58,36.43968357]
[1733842472982,0.86540169,216.68,216.6,36.43968357]
[1733842473278,0.86540169,216.7,216.61,36.43968357]
[1733842473454,10.0,216.72,216.61,36.43968357]
[1733842473665,0.86535745,216.71,216.62,36.43968357]
[1733842473877,0.86535745,216.71,216.54,0.25098]
[1733842473878,0.86535745,216.71,216.61,36.43968357]
[1733842474250,10.0,216.72,216.61,36.43968357]
[1733842474455,0.25098,216.7,216.58,36.43968357]
[1733842474692,20.0,216.65,216.54,36.43968357]
[1733842474974,0.86555237,216.68,216.58,36.43968357]
[1733842475189,10.86555237,216.68,216.56,36.43968357]
[1733842475382,10.86555237,216.68,216.53,36.43968357]
[1733842475383,0.12549,216.64,216.53,36.43968357]
[1733842475553,0.86574677,216.65,216.56,36.43968357]
[1733842475754,10.0,216.66,216.53,36.43968357]
[1733842476047,0.86576327,216.65,216.53,36.43968357]
[1733842476613,0.86576327,216.65,216.49,11.5478]
[1733842476614,0.86561236,216.67,216.56,36.43968357]
[1733842476944,0.86554724,216.74,216.53,0.25098]
[1733842477151,0.86554724,216.74,216.63,36.43968357]
[1733842477459,6.1653,216.76,216.66,36.43968357]
[1733842477460,0.86525115,216.76,216.66,36.43968357]
[1733842477669,7.03043701,216.79,216.68,36.43968357]
[1733842477882,10.0,216.83,216.7,36.43968357]
[1733842478181,0.86503256,216.82,216.7,36.43968357]
[1733842478361,0.86491908,216.84,216.72,36.43968357]
[1733842478545,0.86491908,216.84,216.7,36.43968357]
[1733842478749,0.86491908,216.84,216.72,36.43968357]
[1733842478969,20.25098,216.83,216.7,36.43968357]
[1733842479188,0.86505433,216.82,216.68,36.43968357]
[1733842479346,10.86505433,216.82,216.68,36.43968357]
[1733842479549,10.86505433,216.82,216.7,36.43968357]
[1733842479757,10.25098,216.81,216.7,36.43968357]
[1733842479974,0.12549,216.77,216.64,36.43968357]
[1733842480184,0.86518486,216.77,216.66,36.43968357]
[1733842480349,0.86518486,216.77,216.64,36.43968357]
[1733842480768,0.86518486,216.77,216.62,8.046]
[1733842480769,20.86518486,216.77,216.66,36.43968357]
[1733842480977,20.0,216.75,216.65,36.43968357]
[1733842481176,0.86519626,216.74,216.65,36.43968357]
[1733842481972,2.3059,216.83,216.62,8.046]
[1733842481973,23.776884,216.82,216.71,36.43968357]
[1733842482277,0.86498741,216.81,216.71,36.43968357]
[1733842482483,2.3055,216.87,216.64,0.12549]
[1733842482484,0.86497002,216.83,216.75,36.43968357]
[1733842482653,0.86485341,216.86,216.75,36.43968357]
[1733842482852,0.12549,216.85,216.74,36.43968357]
[1733842483054,0.86485425,216.84,216.74,36.43968357]
[1733842483454,0.86485425,216.84,216.65,0.25098]
[1733842483455,0.86485425,216.84,216.76,36.43968357]
[1733842483685,0.86476564,216.88,216.76,36.43968357]
[1733842483987,0.12549,216.87,216.76,36.43968357]
[1733842484153,0.86477454,216.86,216.76,36.43968357]
[1733842484577,0.86477454,216.86,216.77,36.43968357]
[1733842484780,0.86477454,216.86,216.74,36.43968357]
[1733842484781,0.25098,216.85,216.74,36.43968357]
[1733842484968,0.25098,216.85,216.67,11.5381]
[1733842484969,0.8648949,216.84,216.7,36.43968357]
[1733842485169,0.25098,216.83,216.7,36.43968357]
[1733842485364,0.25098,216.81,216.69,36.43968357]
[1733842485573,0.86509033,216.8,216.73,36.43968357]
[1733842485865,20.0,216.81,216.7,36.43968357]
[1733842486071,0.86505137,216.8,216.7,36.43968357]
[1733842486269,0.86505137,216.8,216.69,36.43968357]
[1733842486655,0.86505137,216.8,216.71,36.43968357]
[1733842487080,0.86505137,216.8,216.7,36.43968357]
[1733842487383,20.0,216.79,216.69,36.43968357]
[1733842487573,0.8650053,216.78,216.68,36.43968357]
[1733842487886,0.8650053,216.78,216.69,36.43968357]
[1733842488084,0.8650053,216.78,216.64,0.25098]
[1733842488271,0.8650053,216.78,216.67,36.43968357]
[1733842488479,0.8650053,216.78,216.63,35.317284]
[1733842488480,20.0,216.77,216.65,36.43968357]
[1733842488662,20.0,216.77,216.67,36.43968357]
[1733842488663,0.86518897,216.76,216.67,36.43968357]
[1733842488858,20.0,216.77,216.67,36.43968357]
[1733842489089,0.86508233,216.81,216.71,36.43968357]
[1733842489258,0.86494851,216.86,216.75,36.43968357]
[1733842489466,0.12549,216.85,216.75,36.43968357]
[1733842489667,0.86488589,216.84,216.75,36.43968357]
[1733842489874,0.86485433,216.88,216.79,36.43968357]
[1733842490061,26.1653,216.94,216.82,36.43968357]
[1733842490062,2.74673235,216.92,216.82,36.43968357]
[1733842490281,1.70205066,216.91,216.81,36.43968357]
[1733842490463,1.70205066,216.91,216.82,36.43968357]
[1733842490889,0.42553191,216.9,216.82,36.43968357]
[1733842491189,1.26300079,216.9,216.82,36.43968357]
[1733842491389,0.86459831,216.89,216.82,36.43968357]
[1733842491686,0.42553191,216.88,216.82,36.43968357]
[1733842492191,0.42553191,216.88,216.75,323.78468]
[1733842492192,1.26300079,216.88,216.86,36.43968357]
[1733842492372,1.26300079,216.88,216.85,36.43968357]
[1733842492373,0.42553191,216.88,216.85,36.43968357]
[1733842492571,0.42553191,216.88,216.79,36.43968357]
[1733842492794,0.25098,216.87,216.71,35.312584]
[1733842492972,0.86494014,216.86,216.75,36.43968357]
[1733842493280,0.42553191,216.85,216.74,36.43968357]
[1733842493483,0.42553191,216.85,216.73,36.43968357]
[1733842493685,20.86485594,216.84,216.73,36.43968357]
[1733842493874,20.86485594,216.84,216.75,36.43968357]
[1733842494079,0.42553191,216.83,216.74,36.43968357]
[1733842495189,0.42553191,216.83,216.75,36.43968357]
[1733842495362,0.42553191,216.83,216.78,36.43968357]
[1733842495770,0.42553191,216.83,216.77,36.43968357]
[1733842496091,0.42553191,216.83,216.78,36.43968357]
[1733842496291,0.42553191,216.83,216.79,36.43968357]
[1733842496503,0.42553191,216.83,216.81,36.43968357]
[1733842496868,0.42553191,216.83,216.73,11.535]
[1733842496869,0.42553191,216.83,216.8,36.43968357]
[1733842497271,0.42553191,216.83,216.81,36.43968357]
[1733842497880,0.42553191,216.83,216.73,36.43968357]
[1733842498365,0.25098,216.82,216.71,36.43968357]
[1733842498705,0.42553191,216.81,216.72,36.43968357]
[1733842498867,0.86491764,216.8,216.72,36.43968357]
[1733842499067,0.86498427,216.81,216.72,36.43968357]
[1733842499415,0.42553191,216.79,216.7,36.43968357]
[1733842499575,0.42553191,216.79,216.71,36.43968357]
[1733842499770,0.42553191,216.79,216.72,36.43968357]
[1733842500183,0.42553191,216.79,216.7,36.43968357]
[1733842500791,24.153354,216.77,216.55,6.6481]
[1733842501073,0.12549,216.72,216.57,36.43968357]
[1733842501265,20.0,216.68,216.59,36.43968357]
[1733842501481,0.12549,216.71,216.57,36.43968357]
[1733842501791,20.42553191,216.67,216.56,36.43968357]
[1733842501989,0.86553465,216.66,216.56,36.43968357]
[1733842502499,0.86553465,216.66,216.54,36.43968357]
[1733842502500,0.42553191,216.65,216.54,36.43968357]
[1733842502686,0.42553191,216.65,216.57,36.43968357]
[1733842502992,0.42553191,216.65,216.59,36.43968357]
[1733842503398,0.42553191,216.65,216.64,36.69066357]
[1733842503581,0.86509283,216.84,216.65,0.25098]
[1733842503897,0.86509283,216.84,216.75,36.43968357]
[1733842504396,0.864886,216.87,216.78,36.43968357]
[1733842504602,2.3051,216.91,216.79,36.43968357]
[1733842504603,0.86464452,216.9,216.79,36.43968357]
[1733842504979,0.86459647,216.94,216.85,36.43968357]
[1733842505177,0.86459647,216.94,216.86,36.43968357]
[1733842505490,0.86442467,216.98,216.86,36.43968357]
[1733842505677,2.76999815,216.99,216.87,36.43968357]
[1733842505879,0.86428953,217.02,216.86,0.37647]
[1733842506089,0.86409488,217.05,216.95,36.43968357]
[1733842506308,2.80850112,217.05,216.96,36.43968357]
[1733842506511,0.86403549,217.04,216.86,23.776884]
[1733842506793,0.86403549,217.04,216.92,36.43968357]
[1733842506972,0.86403549,217.04,216.93,36.43968357]
[1733842507406,0.86403549,217.04,216.92,36.43968357]
[1733842507710,0.12549,217.02,216.86,60.21656757]
[1733842507884,0.98992381,217.02,216.85,36.43968357]
[1733842508095,20.98992381,217.02,216.89,36.43968357]
[1733842508394,0.86443381,217.02,216.9,36.43968357]
[1733842508579,0.25098,217.03,216.9,36.43968357]
[1733842508789,0.25098,217.03,216.89,36.43968357]
[1733842508790,0.86419817,217.02,216.89,36.43968357]
[1733842508985,0.86419817,217.02,216.9,36.43968357]
[1733842509183,0.86419817,217.02,216.89,36.43968357]
[1733842509184,0.37647,217.01,216.89,36.43968357]
[1733842509390,0.37647,217.01,216.85,36.43968357]
[1733842509391,0.25098,216.99,216.85,36.43968357]
[1733842509696,23.902374,216.97,216.83,36.43968357]
[1733842509894,2.304,217.01,216.87,36.43968357]
[1733842510100,0.98978091,217.0,216.87,36.43968357]
[1733842510397,0.98978091,217.0,216.81,36.43968357]
[1733842510398,0.25098,216.99,216.85,36.43968357]
[1733842510600,24.153354,216.95,216.82,36.43968357]
[1733842510802,20.0,216.92,216.78,36.43968357]
[1733842511003,20.0,216.92,216.77,1.5943]
[1733842511004,0.25098,216.9,216.77,36.43968357]
[1733842511296,0.25098,216.9,216.75,36.43968357]
[1733842511297,0.86474396,216.89,216.75,36.43968357]
[1733842511804,0.86474396,216.89,216.74,36.43968357]
[1733842512185,0.12549,216.83,216.67,44.68208357]
[1733842512384,20.0,216.79,216.63,36.43968357]
[1733842512604,20.0,216.79,216.62,312.0]
[1733842512605,0.8651275,216.78,216.65,36.43968357]
[1733842512779,0.12549,216.86,216.72,36.43968357]
[1733842512974,0.8649071,216.86,216.76,36.43968357]
[1733842513196,0.85664744,216.9,216.8,36.43968357]
[1733842513515,0.99004213,216.94,216.75,36.43968357]
[1733842513676,2.70846548,216.91,216.78,36.43968357]
[1733842513883,0.86459201,216.9,216.78,36.43968357]
[1733842514301,0.99007275,216.94,216.81,36.43968357]
[1733842514605,0.99007275,216.94,216.78,36.43968357]
[1733842514606,0.86458275,216.94,216.78,36.43968357]
[1733842514906,0.12549,216.92,216.78,36.43968357]
[1733842515205,0.99009511,216.92,216.78,36.43968357]
[1733842516299,24.027864,216.91,216.77,36.43968357]
[1733842516501,24.027864,216.91,216.74,335.776884]
[1733842516502,20.0,216.88,216.74,36.43968357]
[1733842516807,20.0,216.88,216.79,36.43968357]
[1733842516999,0.86452151,216.97,216.85,36.43968357]
[1733842517219,0.86452151,216.97,216.86,36.43968357]
[1733842517394,0.8642786,216.97,216.85,36.43968357]
[1733842517711,2.83472394,216.99,216.86,36.43968357]
[1733842518005,0.8642701,216.98,216.86,36.43968357]
[1733842518205,0.8642701,216.98,216.82,36.43968357]
[1733842518379,0.12549,216.97,216.81,36.43968357]
[1733842518580,0.86445257,216.96,216.81,36.43968357]
[1733842518781,0.86445257,216.96,216.72,36.43968357]
[1733842518782,0.25098,216.95,216.72,36.43968357]
[1733842518999,24.027864,216.89,216.72,36.43968357]
[1733842519191,0.12549,216.87,216.72,36.43968357]
[1733842519390,0.86477669,216.86,216.71,36.43968357]
[1733842519612,0.86477669,216.86,216.72,36.43968357]
[1733842519799,0.86477669,216.86,216.73,36.43968357]
[1733842519989,0.12549,216.9,216.77,36.43968357]
[1733842520301,0.86461998,216.9,216.77,36.43968357]
[1733842520505,0.86461998,216.9,216.7,48.22706357]
[1733842520506,0.86461998,216.9,216.78,36.43968357]
[1733842520713,0.86461998,216.9,216.74,36.43968357]
[1733842520714,0.25098,216.89,216.74,36.43968357]
[1733842520881,0.12549,216.86,216.66,8.0249]
[1733842521083,0.12549,216.86,216.67,36.43968357]
[1733842521084,20.0,216.8,216.67,36.43968357]
[1733842521288,20.0,216.84,216.72,36.43968357]
[1733842521505,20.0,216.84,216.74,36.43968357]
[1733842521709,2.3052,216.9,216.72,36.43968357]
[1733842521710,0.86469502,216.83,216.72,36.43968357]
[1733842521886,0.12549,216.87,216.72,36.43968357]
[1733842522090,0.12549,216.87,216.69,36.43968357]
[1733842522091,0.12549,216.86,216.69,36.43968357]
[1733842522289,0.12549,216.86,216.66,8.0249]
[1733842522290,0.25098,216.84,216.68,36.43968357]
[1733842522600,0.86490339,216.85,216.71,36.43968357]
[1733842522981,0.86490339,216.85,216.73,36.43968357]
[1733842523184,0.86474091,216.85,216.72,36.43968357]
[1733842523509,1.8322769,216.9,216.67,312.12549]
[1733842523510,0.86482415,216.95,216.75,24.027864]
[1733842523723,2.305,216.92,216.75,60.21656757]
[1733842523889,0.86470204,216.91,216.73,23.776884]
[1733842524093,0.25098,216.9,216.72,36.43968357]
[1733842524288,0.25098,216.88,216.71,23.776884]
[1733842524591,0.25098,216.88,216.66,19.5634]
[1733842524592,0.25098,216.86,216.65,39.55057579]
[1733842524793,0.25098,216.84,216.61,3.11089222]
[1733842524998,0.25098,216.78,216.6,36.43968357]
[1733842525205,20.0,216.73,216.6,36.43968357]
[1733842525407,0.86528132,216.72,216.6,36.43968357]
[1733842526222,0.12549,216.74,216.58,36.43968357]
[1733842526514,1.11637347,216.74,216.58,348.43968357]
[1733842526805,0.86539347,216.74,216.58,348.43968357]
[1733842527011,24.153354,216.73,216.58,312.0]
[1733842527206,24.153354,216.73,216.57,8.0249]
[1733842527207,20.0,216.69,216.57,8.0249]
[1733842527398,0.8654249,216.71,216.58,36.69066357]
[1733842527598,2.76183382,216.74,216.6,36.43968357]
[1733842527599,20.0,216.72,216.6,36.43968357]
[1733842527798,20.0,216.72,216.57,8.0249]
[1733842527799,0.86525516,216.79,216.65,36.43968357]
[1733842527995,0.86525516,216.79,216.59,36.43968357]
[1733842527996,0.86504698,216.85,216.71,36.43968357]
[1733842528194,1.70251586,216.85,216.73,36.43968357]
[1733842528395,0.83746888,216.85,216.75,36.43968357]
[1733842528807,0.83746888,216.85,216.74,36.43968357]
[1733842529007,0.83746888,216.85,216.79,36.43968357]
[1733842529199,0.83746888,216.85,216.77,36.43968357]
[1733842529514,0.83746888,216.85,216.75,36.43968357]
[1733842529689,0.83746888,216.85,216.78,36.43968357]
[1733842530104,0.83746888,216.85,216.79,36.43968357]
[1733842530303,0.83746888,216.85,216.81,36.43968357]
[1733842530510,2.81769229,216.94,216.8,36.43968357]
[1733842530713,3.6821695,216.94,216.81,36.43968357]
[1733842531217,0.8644102,216.96,216.86,36.43968357]
[1733842531392,2.83846152,216.99,216.88,36.43968357]
[1733842532202,0.86419392,217.04,216.89,36.43968357]
[1733842532403,0.86412187,217.08,216.95,36.43968357]
[1733842532597,0.86412187,217.08,216.96,36.43968357]
[1733842532598,0.83746888,217.07,216.96,36.43968357]
[1733842532913,0.83746888,217.07,217.0,36.43968357]
[1733842533122,0.86389861,217.12,217.0,36.43968357]
[1733842533421,2.82106004,217.14,216.96,36.43968357]
[1733842533603,0.86385436,217.13,217.0,60.21656757]
[1733842533804,0.86360861,217.12,216.96,36.43968357]
[1733842534024,0.86360861,217.12,216.97,36.43968357]
[1733842534239,0.12549,217.11,216.96,36.43968357]
[1733842534521,0.86383178,217.11,216.97,36.43968357]
[1733842534718,0.86382409,217.18,217.03,36.43968357]
[1733842535096,0.12549,217.14,216.96,36.43968357]
[1733842535421,0.98928653,217.14,216.93,36.43968357]
[1733842535718,0.98928653,217.14,216.98,36.43968357]
[1733842535922,26.205074,217.13,216.96,36.43968357]
[1733842536097,0.86386575,217.12,216.97,36.43968357]
[1733842536419,0.12549,217.03,216.9,36.43968357]
[1733842536631,0.12549,217.03,216.84,6.5673]
[1733842536632,20.0,216.99,216.84,36.43968357]
[1733842536927,20.0,216.99,216.87,36.43968357]
[1733842537124,20.0,216.99,216.9,36.43968357]
[1733842537303,0.12549,217.09,216.93,36.43968357]
[1733842537617,20.0,217.05,216.84,0.25098]
[1733842537802,20.0,217.05,216.9,36.43968357]
[1733842537803,0.86414043,217.04,216.9,36.43968357]
[1733842538121,0.86414043,217.04,216.91,36.43968357]
[1733842538592,0.86414043,217.04,216.9,36.43968357]
[1733842538795,0.86414043,217.04,216.92,36.43968357]
[1733842538998,0.86405719,217.07,216.94,36.43968357]
[1733842539222,20.0,217.02,216.9,56.43968357]
[1733842539406,20.0,217.02,216.87,23.776884]
[1733842539407,0.86411157,217.01,216.89,36.43968357]
[1733842539798,0.86411157,217.01,216.9,36.43968357]
[1733842540323,20.0,217.02,216.89,36.43968357]
[1733842540622,0.8640602,217.0,216.84,20.12549]
[1733842540821,0.25098,216.99,216.83,38.01808357]
[1733842540995,20.0,216.96,216.79,11.5316]
[1733842541196,0.86425024,216.95,216.83,36.43968357]
[1733842541421,0.86425024,216.95,216.8,36.43968357]
[1733842541620,0.37647,216.94,216.77,36.43968357]
[1733842541814,20.0,216.89,216.75,38.01808357]
[1733842542007,0.86466995,216.88,216.77,36.43968357]
[1733842542328,0.86466995,216.88,216.76,36.43968357]
[1733842542497,20.86463128,216.91,216.79,36.43968357]
[1733842542697,0.8645215,216.9,216.77,36.43968357]
[1733842542904,20.0,216.89,216.76,36.43968357]
[1733842543125,0.86471075,216.88,216.73,36.43968357]
[1733842543623,0.86471075,216.88,216.73,0.25098]
[1733842543841,0.37647,216.87,216.72,36.43968357]
[1733842543994,0.37647,216.87,216.67,13.1163]
[1733842543995,0.25098,216.83,216.67,38.01808357]
[1733842544198,0.9904591,216.83,216.67,38.01808357]
[1733842544399,0.9904591,216.83,216.66,36.43968357]
[1733842544601,0.25098,216.82,216.66,36.43968357]
[1733842544799,0.25098,216.8,216.63,36.43968357]
[1733842545001,0.86508514,216.79,216.62,36.43968357]
[1733842545223,0.12549,216.78,216.62,36.43968357]
[1733842545546,20.0,216.75,216.61,36.43968357]
[1733842545729,0.86520421,216.74,216.61,36.43968357]
[1733842546024,0.86520421,216.74,216.6,36.43968357]
[1733842546616,0.86520421,216.74,216.58,1.5784]
[1733842546617,0.25098,216.73,216.58,1.5784]
[1733842546811,0.25098,216.73,216.56,36.43968357]
[1733842547018,0.25098,216.73,216.57,0.25098]
[1733842547313,20.0,216.7,216.58,36.43968357]
[1733842547811,0.86534385,216.69,216.58,36.43968357]
[1733842548026,0.86534385,216.69,216.57,0.25098]
[1733842548333,20.0,216.69,216.54,36.43968357]
[1733842548522,2.43279,216.71,216.49,11.5475]
[1733842548523,20.0,216.64,216.49,11.5475]
[1733842548828,0.86574361,216.63,216.43,2.82562149]
[1733842549031,0.86574361,216.63,216.46,36.43968357]
[1733842549032,24.027864,216.62,216.46,36.43968357]
[1733842549206,24.027864,216.62,216.4,1.5784]
[1733842549207,0.86590394,216.61,216.44,36.43968357]
[1733842549530,0.86590394,216.61,216.41,11.552]
[1733842549531,20.0,216.57,216.42,37.01257937]
[1733842549730,23.902374,216.62,216.47,36.43968357]
[1733842549910,20.0,216.59,216.45,36.43968357]
[1733842550229,20.0,216.59,216.42,0.5728958]
[1733842550230,20.0,216.59,216.47,0.25098]
[1733842550525,2.3075,216.68,216.43,0.25098]
[1733842550526,24.027864,216.66,216.48,36.43968357]
[1733842550733,0.25098,216.62,216.48,36.43968357]
[1733842550901,0.86577693,216.62,216.48,36.43968357]
[1733842551105,0.25098,216.6,216.42,0.5728958]
[1733842551305,23.902374,216.53,216.42,0.5728958]
[1733842551505,20.0,216.5,216.42,0.5728958]
[1733842551721,0.86624482,216.49,216.42,0.5728958]
[1733842551929,1.29180865,216.49,216.42,0.5728958]
[1733842552103,0.42556383,216.49,216.42,0.5728958]
[1733842552606,0.86610104,216.48,216.42,0.5728958]
[1733842552805,0.25098,216.47,216.42,0.5728958]
[1733842553006,0.42556383,216.47,216.42,0.5728958]
[1733842554546,0.42556383,216.47,216.46,36.43968357]
[1733842554835,0.42556383,216.47,216.43,23.776884]
[1733842555042,0.42556383,216.47,216.46,60.46754757]
[1733842555342,0.86587115,216.62,216.46,60.46754757]
[1733842555343,2.7637278,216.66,216.51,0.25098]
[1733842555503,6.2312,216.72,216.59,36.43968357]
[1733842555830,2.8041053,216.7,216.57,36.43968357]
[1733842556041,3.66028021,216.7,216.58,60.21656757]
[1733842556203,0.85617491,216.7,216.6,60.21656757]
[1733842556406,8.5376,216.79,216.67,36.43968357]
[1733842556407,3.63564019,216.78,216.67,36.43968357]
[1733842556606,3.63564019,216.78,216.66,36.43968357]
[1733842556908,3.63564019,216.78,216.65,36.43968357]
[1733842557116,3.63564019,216.78,216.63,0.25098]
[1733842557117,0.86534266,216.78,216.68,36.43968357]
[1733842557336,2.74895983,216.82,216.68,36.43968357]
[1733842557638,0.86505033,216.81,216.68,36.43968357]